lending/lending_fUSD_20251114
["ID","MTS","AMOUNT","RATE_DAILY","PERIOD"]
[393937584,1763113041504,2500.0,0.000167,2]
[393937586,1763113057319,2572.60352122,0.0001677,2]
[393937587,1763113057340,1012.01989027,0.0001677,2]
[393937588,1763113058049,8987.99010973,0.0001673,2]
[393937589,1763113058074,825.24109014,0.0001673,2]
[393937603,1763113204942,2000.0,0.00041096,30]
[393937605,1763113272500,430.56761895,0.0001673,2]
[393937607,1763113288896,166.66,0.00015299,2]
[393937608,1763113289107,166.66,0.00015621,2]
[393937609,1763113289332,166.66,0.00015943,2]
[393937610,1763113289539,166.66,0.00016266,2]
[393937611,1763113289744,166.66,0.00016588,2]
[393937613,1763113301099,153.15038088,0.00016729,2]
[393937614,1763113304330,150.0,0.00041096,30]
[393937622,1763113333715,6415.79783514,0.00016729,2]
[393937627,1763113348781,-500.57601142,0.00016773,2]
[393937628,1763113348803,-499.42398858,0.00016773,2]
[393937629,1763113352284,-1.40281031,0.00016773,2]
[393937630,1763113352306,-500.0,0.00016773,2]
[393937631,1763113352327,-498.59718969,0.00016773,2]
[393937632,1763113353347,-1.40281031,0.00016773,2]
[393937633,1763113353373,-164.75502713,0.00016773,2]
[393937634,1763113353395,-500.0,0.00016773,2]
[393937635,1763113353418,-333.84216256,0.00016773,2]
[393937636,1763113356231,150.0,0.00016721,2]
[393937638,1763113365476,170.32,0.000301,120]
[393937649,1763113440520,165.27,0.000301,120]
[393937650,1763113444208,8831.90807982,0.00016729,2]
[393937657,1763113547816,376.74666659,0.00016729,2]
[393937658,1763113559143,641.35525359,0.00016052,2]
[393937659,1763113559168,1211.06474641,0.00016052,2]
[393937663,1763113639579,900.0,0.000166,6]
[393937664,1763113641684,1800.0,0.000167,6]
[393937665,1763113643812,2800.0,0.000168,6]
[393937666,1763113645907,3700.0,0.000169,6]
[393937689,1763113694975,166.67,0.00016533,2]
[393937709,1763113754162,200.0,0.00016037,2]
[393937729,1763113823321,329.65333324,0.00016712,2]
[393937734,1763113830640,7948.71727191,0.00016712,2]
[393937759,1763113831605,-599.84,0.0001679,2]
[393937760,1763113831615,-599.84,0.0001679,2]
[393937761,1763113831624,-599.84,0.0001679,2]
[393937762,1763113831634,-1000.0,0.00016799,2]
[393937763,1763113831643,-334.51304342,0.00016799,2]
[393937764,1763113831659,-298.77744301,0.00016799,2]
[393937765,1763113831713,-81.74354432,0.00016799,2]
[393937766,1763113831723,-250.0,0.00016799,2]
[393937767,1763113831733,-448.18931915,0.00016799,2]
[393937768,1763113831742,-95.39396352,0.00016799,2]
[393937769,1763113831753,-404.60603648,0.00016799,2]
[393937770,1763113831762,-196.97575763,0.00016799,2]
[393937771,1763113831771,-239.71664873,0.00016799,2]
[393937781,1763113837525,-8.84935598,0.00016799,2]
[393937782,1763113837535,-500.0,0.00016799,2]
[393937783,1763113837544,-226.35975702,0.00016799,2]
[393937784,1763113837553,-500.0,0.00016799,2]
[393937785,1763113837562,-500.0,0.00016799,2]
[393937786,1763113837571,-500.0,0.00016799,2]
[393937787,1763113837580,-500.0,0.00016799,2]
[393937788,1763113837589,-500.0,0.00016799,2]
[393937789,1763113837598,-500.0,0.00016799,2]
[393937790,1763113837607,-500.0,0.00016799,2]
[393937791,1763113837617,-500.0,0.00016799,2]
[393937792,1763113837626,-500.0,0.00016799,2]
[393937793,1763113837635,-500.0,0.00016799,2]
[393937794,1763113837644,-500.0,0.00016799,2]
[393937795,1763113837654,-500.0,0.00016799,2]
[393937796,1763113837663,-500.0,0.00016799,2]
[393937797,1763113837672,-500.0,0.00016799,2]
[393937798,1763113837682,-500.0,0.00016799,2]
[393937799,1763113837691,-500.0,0.00016799,2]
[393937800,1763113837700,-500.0,0.00016799,2]
[393937801,1763113837709,-500.0,0.00016799,2]
[393937802,1763113837718,-500.0,0.00016799,2]
[393937803,1763113837727,-167.26970017,0.00016799,2]
[393937804,1763113837736,-500.0,0.00016799,2]
[393937805,1763113837745,-586.31952343,0.00016799,2]
[393937806,1763113837754,-533.50103761,0.00016799,2]
[393937807,1763113837763,-500.0,0.00016799,2]
[393937808,1763113837772,-500.0,0.00016799,2]
[393937809,1763113837781,-500.0,0.00016799,2]
[393937810,1763113837790,-500.0,0.00016799,2]
[393937811,1763113837799,-500.0,0.00016799,2]
[393937812,1763113837808,-469.4135343,0.00016799,2]
[393937813,1763113837817,-500.0,0.00016799,2]
[393937814,1763113837826,-500.0,0.00016799,2]
[393937815,1763113837836,-500.0,0.00016799,2]
[393937817,1763113837844,-500.0,0.00016799,2]
[393937818,1763113837854,-500.0,0.00016799,2]
[393937820,1763113837863,-500.0,0.00016799,2]
[393937821,1763113837872,-500.0,0.00016799,2]
[393937822,1763113837880,-500.0,0.00016799,2]
[393937823,1763113837890,-500.0,0.00016799,2]
[393937824,1763113837899,-500.0,0.00016799,2]
[393937825,1763113837908,-500.0,0.00016799,2]
[393937826,1763113837917,-500.0,0.00016799,2]
[393937827,1763113837927,-500.0,0.00016799,2]
[393937828,1763113837937,-500.0,0.00016799,2]
[393937829,1763113837946,-500.0,0.00016799,2]
[393937830,1763113837955,-337.99365264,0.00016799,2]
[393937831,1763113837964,-500.0,0.00016799,2]
[393937832,1763113837973,-500.0,0.00016799,2]
[393937833,1763113837982,-445.55,0.00016799,2]
[393937834,1763113837991,-500.0,0.00016799,2]
[393937835,1763113838000,-176.232,0.00016799,2]
[393937836,1763113838009,-913.612,0.00016799,2]
[393937837,1763113838018,-500.0,0.00016799,2]
[393937838,1763113838027,-303.02424237,0.00016799,2]
[393937839,1763113838037,-500.0,0.00016799,2]
[393937840,1763113838047,-500.0,0.00016799,2]
[393937841,1763113838057,-196.97575763,0.00016799,2]
[393937842,1763113838067,-500.0,0.00016799,2]
[393937843,1763113838077,-500.0,0.00016799,2]
[393937844,1763113838086,-289.28844386,0.00016799,2]
[393937845,1763113838099,-210.71155614,0.00016799,2]
[393937846,1763113838109,-188.66479574,0.00016799,2]
[393937847,1763113838120,-311.33520426,0.00016799,2]
[393937848,1763113838129,-500.0,0.00016799,2]
[393937849,1763113838138,-36395.4677169,0.000168,2]
[393937850,1763113838150,-9533.99091499,0.000168,2]
[393937851,1763113838161,-2576.0915,0.000168,2]
[393937852,1763113838173,-371494.44986811,0.000168,2]
[393937853,1763113838183,-250.0,0.00016811,2]
[393937854,1763113838192,-500.0,0.00016829,2]
[393937855,1763113838202,-246.36840433,0.00016829,2]
[393937856,1763113838211,-972.44327,0.0001683,2]
[393937857,1763113838220,-7948.71727182,0.00016844,2]
[393937858,1763113838230,-200.0,0.00016864,2]
[393937859,1763113838239,-329.65333324,0.00016882,2]
[393937860,1763113838248,-159.92173267,0.000169,2]
[393937861,1763113838258,-221.4705787,0.00016907,2]
[393937862,1763113838271,-166.66,0.0001691,2]
[393937863,1763113838284,-972.44328,0.0001695,2]
[393937864,1763113838293,-500.0,0.00016973,2]
[393937865,1763113838302,-501.71636846,0.00016973,2]
[393937866,1763113838311,-500.0,0.00016973,2]
[393937867,1763113838320,-500.0,0.00016973,2]
[393937868,1763113838330,-501.44245862,0.00016973,2]
[393937869,1763113838339,-501.04147781,0.00016973,2]
[393937870,1763113838348,-501.76237192,0.00016973,2]
[393937871,1763113838358,-500.0,0.00016973,2]
[393937872,1763113838368,-500.0,0.00016973,2]
[393937873,1763113838378,-500.85934132,0.00016973,2]
[393937874,1763113838387,-473.74692978,0.00016973,2]
[393937875,1763113838397,-503.06763194,0.00016973,2]
[393937876,1763113838406,-500.0,0.00016973,2]
[393937877,1763113838416,-500.0,0.00016973,2]
[393937878,1763113838427,-349.60427149,0.00016973,2]
[393937879,1763113838436,-500.0,0.00016973,2]
[393937880,1763113838445,-500.0,0.00016973,2]
[393937881,1763113838455,-501.1969339,0.00016973,2]
[393937882,1763113838464,-166.15783744,0.00016973,2]
[393937883,1763113838473,-500.0,0.00016981,2]
[393937884,1763113838482,-500.0,0.00016981,2]
[393937885,1763113838492,-500.0,0.00016981,2]
[393937886,1763113838501,-500.0,0.00016981,2]
[393937887,1763113838510,-500.0,0.00016982,2]
[393937888,1763113838520,-275.08495472,0.00016982,2]
[393937889,1763113838529,-500.0,0.00016982,2]
[393937890,1763113838538,-295.60496571,0.00016982,2]
[393937891,1763113838547,-500.0,0.00016982,2]
[393937892,1763113838556,-500.0,0.00016982,2]
[393937893,1763113838566,-905.0,0.00016982,2]
[393937894,1763113838575,-500.0,0.00016982,2]
[393937895,1763113838585,-500.0,0.00016982,2]
[393937896,1763113838594,-500.0,0.00016982,2]
[393937897,1763113838604,-500.0,0.00016982,2]
[393937898,1763113838614,-500.0,0.00016982,2]
[393937899,1763113838623,-500.0,0.00016982,2]
[393937900,1763113838633,-599.84,0.00016989,2]
[393937901,1763113838642,-599.84,0.00016989,2]
[393937902,1763113838652,-500.0,0.00016998,2]
[393937903,1763113838662,-500.0,0.00016998,2]
[393937904,1763113838672,-500.0,0.00016998,2]
[393937905,1763113838681,-500.0,0.00016998,2]
[393937906,1763113838690,-500.0,0.00016998,2]
[393937907,1763113838699,-500.0,0.00016998,2]
[393937908,1763113838709,-500.0,0.00016998,2]
[393937909,1763113838719,-500.0,0.00016998,2]
[393937910,1763113838729,-500.0,0.00016998,2]
[393937911,1763113838739,-410.43985639,0.00016998,2]
[393937912,1763113838750,-500.0,0.00016998,2]
[393937913,1763113838759,-500.0,0.00016998,2]
[393937914,1763113838769,-500.0,0.00016998,2]
[393937915,1763113838779,-5326.0,0.00016999,2]
[393937916,1763113838788,-7233.5730545,0.00016999,2]
[393937917,1763113838798,-745187.3551056,0.00016999,2]
[393937918,1763113838808,-500.0,0.00016999,2]
[393937919,1763113838818,-500.0,0.00016999,2]
[393937920,1763113838827,-500.0,0.00016999,2]
[393937921,1763113838836,-500.0,0.00016999,2]
[393937922,1763113838846,-500.0,0.00016999,2]
[393937923,1763113838855,-366.99815821,0.00016999,2]
[393937924,1763113838865,-300.0,0.00016999,2]
[393937925,1763113838875,-337.97311388,0.00016999,2]
[393937926,1763113838884,-500.0,0.00016999,2]
[393937927,1763113838894,-500.0,0.00016999,2]
[393937928,1763113838903,-500.0,0.00016999,2]
[393937929,1763113838913,-500.0,0.00016999,2]
[393937930,1763113838922,-500.0,0.00016999,2]
[393937931,1763113838932,-500.0,0.00016999,2]
[393937932,1763113838941,-500.0,0.00016999,2]
[393937933,1763113838951,-500.0,0.00016999,2]
[393937934,1763113838962,-500.0,0.00016999,2]
[393937935,1763113838972,-500.0,0.00016999,2]
[393937936,1763113838982,-1410116.19147972,0.00017,2]
[393937937,1763113838991,-160.0,0.00017,2]
[393937938,1763113839001,-250.0,0.00017,2]
[393937939,1763113839011,-355.1629041,0.00017,2]
[393937940,1763113839020,-151.069191,0.00017,2]
[393937941,1763113839030,-151.0,0.00017,2]
[393937942,1763113839039,-151.0,0.00017,2]
[393937943,1763113839050,-151.0,0.00017,2]
[393937944,1763113839059,-151.0,0.00017,2]
[393937945,1763113839069,-280.368315,0.00017,2]
[393937946,1763113839078,-151.0,0.00017,2]
[393937947,1763113839087,-500.0,0.00017009,2]
[393937948,1763113839097,-500.0,0.00017009,2]
[393937949,1763113839106,-500.0,0.00017009,2]
[393937950,1763113839115,-500.0,0.00017009,2]
[393937951,1763113839124,-905.0,0.00017009,2]
[393937952,1763113839134,-500.0,0.00017009,2]
[393937953,1763113839143,-500.0,0.00017009,2]
[393937954,1763113839153,-500.0,0.00017009,2]
[393937955,1763113839167,-500.0,0.00017009,2]
[393937956,1763113839177,-500.0,0.00017009,2]
[393937957,1763113839187,-500.0,0.00017009,2]
[393937958,1763113839197,-500.0,0.00017037,2]
[393937959,1763113839207,-505.68760807,0.00017037,2]
[393937960,1763113839216,-500.0,0.00017037,2]
[393937961,1763113839226,-500.0,0.00017037,2]
[393937962,1763113839236,-905.0,0.00017037,2]
[393937963,1763113839245,-500.0,0.00017037,2]
[393937964,1763113839256,-500.0,0.00017037,2]
[393937965,1763113839265,-500.0,0.00017037,2]
[393937966,1763113839276,-500.0,0.00017037,2]
[393937967,1763113839289,-500.0,0.00017037,2]
[393937968,1763113839299,-500.0,0.00017037,2]
[393937969,1763113839309,-329.65333324,0.00017051,2]
[393937970,1763113839319,-500.0,0.00017064,2]
[393937971,1763113839328,-500.0,0.00017064,2]
[393937972,1763113839338,-500.0,0.00017064,2]
[393937973,1763113839347,-905.0,0.00017064,2]
[393937974,1763113839359,-500.0,0.00017064,2]
[393937975,1763113839368,-500.0,0.00017064,2]
[393937976,1763113839377,-500.0,0.00017064,2]
[393937977,1763113839387,-500.0,0.00017064,2]
[393937978,1763113839397,-500.0,0.00017064,2]
[393937979,1763113839406,-500.0,0.00017064,2]
[393937980,1763113839416,-445.55,0.00017073,2]
[393937981,1763113839425,-500.0,0.00017092,2]
[393937982,1763113839434,-500.0,0.00017092,2]
[393937983,1763113839443,-500.0,0.00017092,2]
[393937984,1763113839452,-905.0,0.00017092,2]
[393937985,1763113839462,-500.0,0.00017092,2]
[393937986,1763113839472,-500.0,0.00017092,2]
[393937987,1763113839482,-500.0,0.00017092,2]
[393937988,1763113839491,-500.0,0.00017092,2]
[393937989,1763113839500,-500.0,0.00017092,2]
[393937990,1763113839510,-500.0,0.00017092,2]
[393937991,1763113839520,-166.941464,0.000171,2]
[393937992,1763113839529,-500.0,0.00017119,2]
[393937993,1763113839539,-573.64972731,0.00017119,2]
[393937994,1763113839549,-500.0,0.00017119,2]
[393937995,1763113839559,-905.0,0.00017119,2]
[393937996,1763113839568,-500.0,0.00017119,2]
[393937997,1763113839578,-500.0,0.00017119,2]
[393937998,1763113839588,-500.0,0.00017119,2]
[393937999,1763113839598,-500.0,0.00017119,2]
[393938000,1763113839607,-500.0,0.00017119,2]
[393938001,1763113839617,-150.0,0.00017138,2]
[393938002,1763113839626,-151.0,0.00017146,2]
[393938003,1763113839636,-500.0,0.00017146,2]
[393938004,1763113839645,-500.0,0.00017146,2]
[393938005,1763113839654,-905.0,0.00017146,2]
[393938006,1763113839665,-500.0,0.00017146,2]
[393938007,1763113839674,-500.0,0.00017146,2]
[393938008,1763113839683,-500.0,0.00017146,2]
[393938009,1763113839692,-500.0,0.00017146,2]
[393938010,1763113839702,-500.0,0.00017146,2]
[393938011,1763113839711,-151.0,0.00017147,2]
[393938012,1763113839720,-151.0,0.00017147,2]
[393938013,1763113839729,-151.0,0.00017147,2]
[393938014,1763113839739,-159.92173267,0.0001715,2]
[393938015,1763113839748,-186.09250165,0.00017165,2]
[393938016,1763113839758,-500.0,0.00017174,2]
[393938017,1763113839767,-152.43712256,0.00017174,2]
[393938018,1763113839776,-905.0,0.00017174,2]
[393938019,1763113839785,-500.0,0.00017174,2]
[393938020,1763113839794,-584.0,0.00017174,2]
[393938021,1763113839803,-380.79144782,0.00017174,2]
[393938022,1763113839816,-500.0,0.00017174,2]
[393938023,1763113839825,-500.0,0.00017174,2]
[393938024,1763113839835,-270.0,0.00017185,2]
[393938025,1763113839844,-168.0,0.00017186,2]
[393938026,1763113839854,-1150.0,0.00017188,2]
[393938027,1763113839863,-168.0,0.00017197,2]
[393938028,1763113839872,-500.0,0.00017201,2]
[393938029,1763113839881,-905.0,0.00017201,2]
[393938030,1763113839891,-400.61194819,0.00017201,2]
[393938031,1763113839900,-500.0,0.00017201,2]
[393938032,1763113839910,-972.44327,0.0001721,2]
[393938033,1763113839919,-500.0,0.00017229,2]
[393938034,1763113839929,-905.0,0.00017229,2]
[393938035,1763113839938,-500.0,0.00017229,2]
[393938036,1763113839947,-168.0,0.00017229,2]
[393938037,1763113839956,-500.0,0.00017256,2]
[393938038,1763113839966,-905.0,0.00017256,2]
[393938039,1763113839976,-500.0,0.00017256,2]
[393938040,1763113839985,-270.0,0.00017273,2]
[393938041,1763113839994,-500.0,0.00017283,2]
[393938042,1763113840003,-905.0,0.00017283,2]
[393938043,1763113840012,-500.0,0.00017283,2]
[393938044,1763113840021,-500.0,0.00017288,2]
[393938045,1763113840193,-2644.73307284,0.00017305,2]
[393938046,1763113840203,-500.0,0.00017311,2]
[393938047,1763113840213,-905.0,0.00017311,2]
[393938048,1763113840222,-500.0,0.00017311,2]
[393938049,1763113840232,-168.0,0.00017323,2]
[393938050,1763113840241,-500.0,0.00017338,2]
[393938051,1763113840251,-905.0,0.00017338,2]
[393938052,1763113840260,-434.0,0.00017338,2]
[393938053,1763113840269,-445.55,0.00017347,2]
[393938054,1763113840279,-500.0,0.00017366,2]
[393938055,1763113840290,-905.0,0.00017366,2]
[393938056,1763113840299,-151.0,0.00017379,2]
[393938057,1763113840308,-151.0,0.00017379,2]
[393938058,1763113840318,-151.0,0.00017379,2]
[393938059,1763113840329,-226.957097,0.0001738,2]
[393938060,1763113840337,-248.0,0.00017393,2]
[393938062,1763113840346,-905.0,0.00017393,2]
[393938063,1763113840357,-159.92173267,0.000174,2]
[393938064,1763113840366,-905.0,0.0001742,2]
[393938065,1763113840375,-905.0,0.00017448,2]
[393938066,1763113840383,-972.44328,0.0001745,2]
[393938067,1763113840392,-905.0,0.00017475,2]
[393938068,1763113840401,-4600.0,0.000175,6]
[393938069,1763113840410,-905.0,0.00017503,2]
[393938070,1763113840418,-179.72,0.00017522,2]
[393938071,1763113840427,-905.0,0.0001753,2]
[393938072,1763113840436,-905.0,0.00017557,2]
[393938073,1763113840444,-905.0,0.00017585,2]
[393938074,1763113840453,-168.0,0.00017594,2]
[393938075,1763113840463,-900.0,0.000176,6]
[393938076,1763113840472,-916.43261466,0.00017612,2]
[393938078,1763113840481,-445.55,0.00017621,2]
[393938080,1763113840490,-168.0,0.00017628,2]
[393938081,1763113840500,-168.0,0.00017634,2]
[393938083,1763113840509,-168.0,0.00017637,2]
[393938085,1763113840518,-159.92173267,0.0001765,2]
[393938087,1763113840527,-230.0,0.00017666,2]
[393938088,1763113840537,-230.0,0.00017673,2]
[393938089,1763113840547,-972.44328,0.000177,2]
[393938090,1763113840556,-900.0,0.000177,6]
[393938091,1763113840566,-230.0,0.0001771,2]
[393938092,1763113840575,-230.0,0.00017766,2]
[393938093,1763113840585,-168.0,0.0001777,2]
[393938094,1763113840595,-166.66,0.00017794,2]
[393938095,1763113840605,-900.0,0.000178,6]
[393938096,1763113840615,-150.0,0.00017808,2]
[393938097,1763113840624,-168.0,0.00017824,2]
[393938098,1763113840634,-230.0,0.00017831,2]
[393938099,1763113840644,-150.0,0.00017835,2]
[393938100,1763113840654,-150.0,0.00017863,2]
[393938101,1763113840664,-150.0,0.0001789,2]
[393938102,1763113840673,-445.56697047,0.00017895,2]
[393938103,1763113840682,-166.67,0.00017898,2]
[393938104,1763113840693,-159.92173267,0.000179,2]
[393938105,1763113840702,-900.0,0.000179,6]
[393938106,1763113840711,-302.87952388,0.000179,3]
[393938107,1763113840720,-687.41174934,0.000179,2]
[393938108,1763113840731,-1564.98493348,0.000179,2]
[393938109,1763113840740,-278.9962114,0.00017918,2]
[393938110,1763113840750,-300.0,0.00017946,2]
[393938111,1763113840759,-300.0,0.00017946,2]
[393938112,1763113840768,-151.0,0.00017947,2]
[393938113,1763113840778,-151.0,0.00017947,2]
[393938114,1763113840788,-151.0,0.00017947,2]
[393938115,1763113840797,-35903.06312665,0.00017947,2]
[393938116,1763113840807,-972.44327,0.0001795,2]
[393938117,1763113840816,-500.98759368,0.00017973,2]
[393938118,1763113840826,-331.29430014,0.00017973,2]
[393938119,1763113840835,-196.70805248,0.00017973,2]
[393938120,1763113840846,-500.0,0.00017998,2]
[393938121,1763113840856,-300.0,0.00017999,2]
[393938122,1763113840865,-309.52096424,0.00017999,2]
[393938123,1763113840874,-500.0,0.00017999,2]
[393938124,1763113840884,-500.0,0.00017999,2]
[393938125,1763113840893,-500.0,0.00017999,2]
[393938126,1763113840902,-500.0,0.00017999,2]
[393938127,1763113840913,-500.0,0.00017999,2]
[393938128,1763113840922,-414.79117042,0.00017999,2]
[393938129,1763113840931,-85043.42216566,0.00018,2]
[393938130,1763113840946,-1109.4108107,0.00018,2]
[393938131,1763113840958,-42915.6389092,0.00018,2]
[393938132,1763113840974,-325.63149998,0.00018,2]
[393938133,1763113841077,-329.65333324,0.00017221,2]
[393938134,1763113841086,-5572651.8352942,0.00018,2]
[393938135,1763113841096,-102750.35404643,0.00018,2]
[393938136,1763113841105,-556796.6537119,0.00018,2]
[393938137,1763113841114,-786081.08680328,0.00018,2]
[393938138,1763113841125,-6407.62346115,0.00018,2]
[393938139,1763113841136,-2571.42885896,0.00018,2]
[393938140,1763113841148,-290.65933611,0.00018,2]
[393938146,1763113843977,5774.21805159,0.00016712,2]
[393938149,1763113846045,-555.52653275,0.00016799,2]
[393938150,1763113846055,-500.0,0.00016799,2]
[393938151,1763113846065,-7948.71727182,0.00016976,2]
[393938152,1763113846075,-7948.71727182,0.00017108,2]
[393938153,1763113846086,-329.65333324,0.00017391,2]
[393938154,1763113846096,-3412.15808874,0.000179,2]
[393938155,1763113846106,-70915.85489097,0.00018,2]
[393938158,1763113850351,1000.0,0.000167,2]
[393938162,1763113868788,2500.0,0.000167,2]
[393938176,1763114214028,150.0,0.00016747,2]
[393938183,1763114354547,575.79194841,0.00016438,2]
[393938184,1763114354571,1525.22805159,0.00016438,2]
[393938201,1763114613789,325.36361279,0.00041124,120]
[393938239,1763114899579,190.84,0.00016712,2]
[393938278,1763115031919,-250.0,0.00016796,2]
[393938280,1763115031930,-207.09757395,0.00016803,2]
[393938282,1763115031944,-195.0,0.00016811,2]
[393938284,1763115031955,-999.0,0.00016826,3]
[393938287,1763115031966,-161.75,0.0001684,2]
[393938289,1763115031978,-449.38969654,0.00016841,2]
[393938291,1763115031991,-550.61030346,0.00016841,2]
[393938293,1763115032002,-174.38893912,0.000169,2]
[393938295,1763115032012,-250.0,0.00017,2]
[393938297,1763115032023,-31.71508864,0.000173,2]
[393938303,1763115032244,-466.29434677,0.000173,2]
[393938304,1763115032256,-1501.99056459,0.000173,2]
[393938305,1763115032266,-500.0,0.000173,6]
[393938306,1763115032275,-884.09982493,0.000174,6]
[393938307,1763115032295,-115.90017507,0.000174,6]
[393938308,1763115032305,-2145.0,0.0001743,2]
[393938309,1763115032314,-3048.52338072,0.0001743,2]
[393938310,1763115032325,-1500.0,0.0001743,2]
[393938403,1763115037792,-1937.47661928,0.0001743,2]
[393938405,1763115037801,-615.515,0.0001743,2]
[393938407,1763115037810,-6669.0,0.0001743,2]
[393938409,1763115037820,-1500.0,0.000175,6]
[393938411,1763115037830,-2000.0,0.000176,6]
[393938413,1763115037839,-226.0,0.00017661,2]
[393938415,1763115037849,-226.0,0.00017672,2]
[393938416,1763115037858,-2500.0,0.000177,6]
[393938417,1763115037867,-151.0,0.00017717,2]
[393938418,1763115037876,-151.0,0.00017717,2]
[393938419,1763115037885,-151.0,0.00017717,2]
[393938420,1763115037893,-151.0,0.00017717,2]
[393938421,1763115037901,-151.0,0.00017717,2]
[393938422,1763115037910,-78.08778111,0.00017717,2]
[393938423,1763115037929,-72.91221889,0.00017717,2]
[393938424,1763115037937,-151.0,0.00017717,2]
[393938425,1763115037946,-151.0,0.00017717,2]
[393938426,1763115037956,-151.0,0.00017717,2]
[393938427,1763115037965,-151.0,0.00017717,2]
[393938428,1763115037974,-151.0,0.00017717,2]
[393938429,1763115037983,-151.0,0.00017717,2]
[393938430,1763115037992,-151.0,0.00017717,2]
[393938431,1763115038001,-151.0,0.00017717,2]
[393938432,1763115038010,-151.0,0.00017717,2]
[393938433,1763115038019,-151.0,0.00017717,2]
[393938434,1763115038029,-151.0,0.00017717,2]
[393938435,1763115038038,-151.0,0.00017717,2]
[393938436,1763115038047,-151.0,0.00017717,2]
[393938438,1763115038057,-151.0,0.00017717,2]
[393938439,1763115038066,-197.98126571,0.00017727,2]
[393938440,1763115038075,-218.82372603,0.00017727,2]
[393938441,1763115038084,-500.0,0.00017727,2]
[393938442,1763115038094,-518.58552224,0.00017727,2]
[393938443,1763115038103,-500.0,0.00017727,2]
[393938444,1763115038112,-500.0,0.00017727,2]
[393938445,1763115038122,-500.0,0.00017727,2]
[393938446,1763115038130,-416.3322208,0.00017727,2]
[393938447,1763115038140,-340.48371218,0.00017727,2]
[393938448,1763115038150,-500.0,0.00017727,2]
[393938449,1763115038158,-496.55814159,0.00017727,2]
[393938450,1763115038171,-45.33197138,0.00017727,2]
[393938451,1763115038179,-500.0,0.00017727,2]
[393938452,1763115038188,-500.0,0.00017727,2]
[393938453,1763115038198,-539.99260159,0.00017727,2]
[393938454,1763115038207,-350.0,0.00017727,2]
[393938455,1763115038217,-3581.74,0.00017728,2]
[393938456,1763115038226,-9999.99,0.00017728,2]
[393938457,1763115038235,-2767.5,0.00017728,2]
[393938458,1763115038245,-299.99,0.00017728,4]
[393938459,1763115038254,-3197.45542702,0.00017728,2]
[393938462,1763115039778,-619.97457298,0.00017728,2]
[393938463,1763115039789,-348.74062702,0.00017728,2]
[393938464,1763115039990,-1174.40937298,0.00017728,2]
[393938465,1763115039999,-150.99,0.00017728,2]
[393938466,1763115040009,-139.40342877,0.00017728,2]
[393938467,1763115040020,-11.58657123,0.00017728,2]
[393938468,1763115040029,-1223.88,0.00017728,2]
[393938469,1763115040038,-1535.53,0.00017728,2]
[393938470,1763115040047,-9999.99,0.00017728,2]
[393938471,1763115040056,-15139.99,0.00017728,2]
[393938472,1763115040065,-903.59,0.00017728,2]
[393938473,1763115040074,-499.99,0.00017728,2]
[393938474,1763115040083,-9601.88,0.00017728,2]